{"text_format":"3","workbook":"xlsx","n_sheets":1,"sheets":["Лист3"],"not_rendered":{"defined_names":2},"read":"whole","date_system":"1900"}

{"sheet":"Лист3","index":0,"n_rows":170,"n_cols":6,"rows_kept":170,"merged":[[0,0,0,2]]}
["Інформація про доходи бюджету м.Луцька                                 станом на 17.12.2020"]
["\\",null,"грн."]
["Код","Назва доходу","Поступлено "]
[1,2,3]
[null,"ЗАГАЛЬНИЙ     ФОНД"]
[11010000,"Податок та збір на доходи фізичних осіб",{"v":4627120.94,"d":"4,627,120.94"},{"$f":"IF(OR(C6<>0),1,0)","v":1}]
[11010100,"Податок на доходи фізичних осіб, що сплачується податковими агентами, із доходів платника податку у вигляді заробітної плати",4073243.39,{"$f":"IF(OR(C7<>0),1,0)","v":1}]
[11010200,"Податок на доходи фізичних осіб з грошового забезпечення, грошових винагород та інших виплат, одержаних військовослужбовцями та особами рядового і начальницького складу, що сплачується податковими агентами",480045.22,1]
[11010400,"Податок на доходи фізичних осіб, що сплачується податковими агентами, із доходів платника податку інших ніж заробітна плата",33011.97,1]
[11010500,"Податок на доходи фізичних осіб, що сплачується фізичними особами за результатами річного декларування",-124.83,1]
[11010501,"Податок на доходи фізичних осіб, що сплачується фізичними особами, який не пдлягає обов\"язковому декларуванню",40945.19,1]
[13010200,"Рентна плата за спеціальне використання лісових ресурсів (крім рентної плати за спеціальне використання лісових ресурсів в частині деревини, заготовленої в порядку рубок головного користування)",null,0]
[13030100,"Рентна плата за користування надрами для видобування корисних копалин загальнодержавного значення",null,0]
[14021900,"Акцизний податок з вироблених в Україні підакцизних товарів (пальне)",33704.08,1]
[14031900,"Акцизний податок з ввезених на митну територію України підакцизних товарів (пальне)",149813.32,1]
[{"$nulls":3},0]
[14040000,"Акцизний податок з реалізації субєктами господарювання роздрібної торгівлі підакцизних товарів",19515.32,1]
[{"$nulls":3},0]
[22010300,"Адміністративний збір за проведення державної реєстрації юридичних осіб та фізичних осіб-підприємців",3150,1]
[{"$nulls":3},0]
[22090000,"Державне мито",{"v":3322.9,"d":"3,322.90"},1]
[22090100,"Державне мито, що сплачується  за місцем розгляду та оформлення документів,в т.ч.за оформлення документів на спадщину і дарування",2585.1,1]
[22090200,"Державне мито, не віднесене до інших категорій",6.8,1]
[22090300,"Державне мито за дії, повязані з одержанням патентів на обєкти права інтелектуальної власності, підтриманням їх чинності та передаванням прав їхніми власниками",null,0]
[22090400,"Державне мито, пов\"язане з видачею та оформленням закордонних паспортів (посвідок) та паспортів громадян Украіни",731,1]
[{"$nulls":3},0]
[11020201,"Податок на прибуток підприємств та фінансових установ комунальної власності ",null,0]
[21010301,"Частина чистого прибутку (доходу) комунальних унітарних підприємств  та їх об'єднань, що вилучається до відповідного місцевого бюджету ",null,0]
[{"$nulls":3},0]
[18000000,"Місцеві податки ",{"v":1368261.56,"d":"1,368,261.56"},1]
[18010000,"Податок на майно",{"v":484022.93,"d":"484,022.93"},1]
[null,"Податок на нерухоме майно, відмінне від земельної ділянки",152869.45,1]
[18010100,"Податок на нерухоме майно, відмінне від земельної ділянки, сплачений юридичними особами, які є власниками об'єктів житлової нерухомості",null,0]
[18010200,"Податок на нерухоме майно, відмінне від земельної ділянки, сплачений фізичними особами, які є власниками об'єктів житлової нерухомості",20828.43,1]
[18010300,"Податок на нерухоме майно, відмінне від земельної ділянки, сплачений фізичними особами, які є власниками об'єктів нежитлової нерухомості",24670.9,1]
[18010400,"Податок на нерухоме майно, відмінне від земельної ділянки, сплачений юридичними особами, які є власниками об'єктів нежитлової нерухомості",107370.12,1]
[{"$nulls":3},0]
[null,"Плата за землю",{"v":301152.48,"d":"301,152.48"},1]
[18010500,"Земельний податок з юридичних осіб",148167.84,1]
[18010600,"Орендна плата з юридичних осіб",63093.78,1]
[18010700,"Земельний податок з фізичних  осіб",70420.86,1]
[18010900,"Орендна плата з фізичних  осіб",19470,1]
[{"$nulls":3},0]
[null,"Транспортний податок",{"v":30001,"d":"30,001.00"},1]
[18011000,"Транспортний податок з фізичних осіб ",30001,1]
[18011100,"Транспортний податок з юридичних осіб ",null,0]
[{"$nulls":3},0]
[18020000,"Збір за місця для паркування транспортних засобів",{"v":0,"d":"0.00"},0]
[18020100,"Збір за місця для паркування транспортних засобів, сплачений юридичними особами",null,0]
[18020200,"Збір за місця для паркування транспортних засобів, сплачений фізичними особами",null,0]
[{"$nulls":3},0]
[18030000,"Туристичний збір",{"v":0,"d":"0.00"},0]
[18030100,"Туристичний збір,сплачений юридичними особами",null,0]
[18030200,"Туристичний збір,сплачений фізичними особами",null,0]
[{"$nulls":3},0]
[18040000,"Збір за провадження деяких видів підприємницької діяльності,що справлявся до 1 січня 2015 року",{"v":0,"d":"0.00"},0]
[18040100,"Збір за провадження торговельної діяльності (роздр.торгівля), сплачений фіз.особами",null,0]
[18040200,"Збір за провадження торговельної діяльності (роздр.торгівля), сплачений юридичними особами",null,0]
[18040300,"Збір за здійснення торгівлі валютними цінностями",null,0]
[18040500,"Збір за провадження торговельної діяльності (оптова торгівля), сплачений фізичними особами",null,0]
[18040600,"Збір за провадження торговельної діяльності (ресторанне господарство),сплачений фізичними особами",null,0]
[18040700,"Збір за провадження торговельної діяльності (оптова торгівля), сплачений юридичними особами",null,0]
[18040800,"Збір за провадження торговельної діяльності (ресторанне господарство),сплачений юридичними особами",null,0]
[18040900,"Збір за провадження торговельної діяльності із придбанням пільгового патенту",null,0]
[18041000,"Збір за провадження торговельної діяльності із придбанням короткотермінового торгового патенту",null,0]
[18041300,"Збір за провадження  діяльності з надання платних послуг, сплачений фізичними особами",null,0]
[18041400,"Збір за провадження  діяльності з надання платних послуг, сплачений юридичними особами",null,0]
[18041700,"Збір за здійснення діяльності у сфері розваг, сплачений юридичними особами",null,0]
[18041800,"Збір за здійснення діяльності у сфері розваг, сплачений фізичними особами",null,0]
[{"$nulls":3},0]
[18050000,"Єдиний податок для суб'єктів малого підп-ва",{"v":884238.63,"d":"884,238.63"},1]
[18050200,"Єдиний податок з фізичних осіб, нарахований до 1січня2011 р.",null,0]
[18050300,"Єдиний податок з юридичних осіб",160422.95,1]
[18050400,"Єдиний податок з фізичних осіб",723815.68,1]
[18050500,"Єдиний податок з сільгоспвиробників",null,{"$f":"IF(OR(C75<>0),1,0)","v":0}]
[19010000,"Екологічний податок",{"v":0,"d":"0.00"},0]
[19010101,"Надходження від викидів забруднюючих речовин в атмосферне повітря стаціонарними джерелами забруднення",null,0]
[19010201,"Надходження від скидів забруднюючих речовин безпосередньо у водні об'єкти ",null,0]
[19010301,"Надходження від розміщення відходів у спеціально відведених для цього місцях",null,0]
[{"$nulls":3},0]
[31010200,"Кошти від реалізації безхазяйного майна",null,0]
[31020000,"Надходження коштів від Державного фонду дорогоцінних металів і дорогоцінного каміння",null,0]
[{"$nulls":3},0]
[21050000,"Плата за розміщення тимчасово вільних коштів місцевих бюджетів",null,0]
[{"$nulls":3},0]
[22012500,"Плата за надання інших адміністративних послуг",32653.2,1]
[22012600,"Адміністративний збір за державну реєстрацію речових прав на нерухоме майно та їх обтяжень",5742,1]
[22012900,"Плата за скорочення термінів надання послуг у сфері державної реєстрації речових прав на нерухоме майно та їх обтяжень і державної реєстрації юридичних осіб, фізичних осіб - підприємців та громадських формувань, а також плата за надання інших платних послуг, пов'язаних з такою державною реєстрацією",null,0]
[21080900,"Штрафні санкції за порушення законодавства про патентування ",null,0]
[21081100,"Адміністративні штрафи та інші санкції",33800,1]
[21081500,"Адміністративні штрафи та штрафні  санкції за порушення законодавства у сфері виробництва та обігу алкогольних напоїв та тютюнових виробів",5000,1]
[{"$nulls":3},0]
[22080400,"Надходження від орендної плати за користування цілісним майновим комплексом та ін. майном, що у комун. власності ",9118.43,1]
[24060300,"Інші надходження",16332.35,1]
[24062200,"Кошти за шкоду, що заподіяна на земельних ділянках державної та комунальної власності, які не надані у користування та не передані у власність, внаслідок їх самовільного зайняття, використання не за цільовим призначенням",null,0]
[null,"Всього доходів (без субвенції) ",{"v":6307534.100000001,"d":"6,307,534.10"},1]
[{"$nulls":3},0]
[41020604,"Стабілізаційна дотація",null,0]
[{"$nulls":3},0]
[41000000,"Субвенція з Державного бюджету",{"v":0,"d":"0.00"},0]
[41050100,"Субвенція з державного бюджету місцевим бюджетам на надання пільг та житлових субсидій населенню на оплату електроенергії, природного газу, послуг тепло-, водопостачання і водовідведення, квартирної плати (утримання будинків і споруд та прибудинкових територій",null,0]
[41050200,"Субвенція на надання пільг та житлових субсидій населенню на  придбання твердого та рідкого пічного побутового палива та скрапленого газу",null,0]
[41050300,"Субвенція з Державного бюджету на виплату допомоги сім'ям з дітьми, малоз.сім'ям,  інвал.дит-ва та дітям інвалідам та тимчасової держ. допомоги дітям та допомоги по догляду за інвалідами 1 та 2 групи внаслідок психічного розладу",null,0]
[41050400,"Субвенція з місцевого бюджету на виплату грошової компенсації за належні для отримання жилі приміщення для сімей загиблих осіб, визначених абзацами 5 - 8 пункту 1 статті 10 Закону України \"Про статус ветеранів війни, гарантії їх соціального захисту\", для осіб з інвалідністю I - II групи, яка настала внаслідок поранення, контузії, каліцтва або захворювання, одержаних під час безпосередньої участі в антитерористичній операції, забезпеченні її проведення, визначених пунктами 11 - 14 частини другої статті 7 Закону України \"Про статус ветеранів війни, гарантії їх соціального захисту\", та які потребують поліпшення житлових умов за рахунок відповідної субвенції з державного бюджету",null,0]
[41050900,"Субвенція з місцевого бюджету на проектні, будівельно-ремонтні роботи, придбання житла та приміщень для розвитку сімейних та інших форм виховання, наближених до сімейних, та забезпечення житлом дітей-сиріт, дітей, позбавлених батьківського піклування, осіб з їх числа, за рахунок відповідної субвенції з державного бюджету",null,0]
[41050500,"Субвенція з місцевого бюджету на виплату грошової компенсації за належні для отримання жилі приміщення  для сімей загиблих учасників бойових дій на території інших держав, визначених у абзаці першому пункту 1 статті 10 ЗУ \"Про статус ветеранів війни, гарантії їх соціального захисту\", для осіб з інвалідністю 1-2 групи з числа учасників бойових дій на території інших держав, які стали інвалідами внаслідок поранення, контузії,каліцтва або захворювання, пов'язаних з перебуванням у цих державах, визначених пунктом 7частини другої статті 7 ЗУ \"Про статус ветеранів війни, гарантії їх соціального захисту\", та які потребують поліпшення житлових умов за рахунок відповідної субвенції з державного бюджету",null,0]
[41050600,"Субвенція  на виплату грошової компенсації за належні для отримання жилі приміщення для внутрішньо переміщених осіб,  які потребують поліпшення житлових умов ",null,0]
[41034500,"Субвенція з державного бюджету місцевим бюджетам на здійснення заходів щодо соціально-економічного розвитку окремих територій",null,0]
[41053900,"Інші субвенції",null,0]
[41054300," Субвенція з  місцевого бюджету на реалізацію заходів, спрямованих на підвищення якості освіти за рахунок відповідної субвенції з державного бюджету",null,0]
[41051700,"Субвенція на придбання витратних матеріалів для закладів охорони здоров'я та лікувальних засобів для інгаляційної анестезії",null,0]
[41051000,"Субвенція з місцевого б-ту на здійснення переданих видатків у сфері освіти за рахунок коштів освітньої субвенції",null,0]
[41051400,"Субвенція з місцевого бюджету на забезпечення якісної, сучасної та доступної загальної середньої освіти \"Нова українська школа\" за рахунок відповідної субвенції з державного бюджету",null,0]
[41051100," Субвенція з  місцевого бюджету за рахунок залишку коштів освітньої субвенції,що утворився на початок бюджетного періоду",null,0]
[41053000,"Субвенція з місцевого бюджету на проведення виборів депутатів місцевих рад та сільських, селищних, міських голів, за рахунок відповідної субвенції з державного бюджету",null,0]
[41033900,"Освітня субвенція з державного бюджету місцевим бюджетам ",null,0]
[41052000,"Субвенція на відшкодування вартості лікарських засобів для лікування окремих захворювань",null,0]
[41051500," Субвенція з  місцевого бюджету на здійснення переданих видатків у сфері охорони здоров'я за рахунок коштів медичної субвенції",null,0]
[41034200,"Медична субвенція з державного бюджету місцевим бюджетам ",null,0]
[41054200,"Субвенція на виплату грошової компенсації за належні для отримання жилі приміщення для сімей осіб, для осіб з інвалідністю I - II групи,  чи інших ушкоджень здоров'я, одержаних під час участі у Революції Гідності,",null,0]
[41055000,"Субвенція на здійснення підтримки окремих закладів та заходів у системі охорони здоров'я за рахунок відповідної субвенції з державного бюджету",null,0]
[41051200,"Субвенція на надання державної підтримки особам з особливими освітніми потребами",null,0]
[41055200,"Субвенція з місцевого бюджету на забезпечення подачею кисню",null,0]
[null,"ВСЬОГО доходів загального фонду",{"v":6307534.100000001,"d":"6,307,534.10"},1]
[{"$nulls":3},0]
[null,"СПЕЦІАЛЬНИЙ ФОНД",{"v":271582.27,"d":"271,582.27"},1]
[25010000,"Надходження від плати за послуги, що надаються бюджетними установами",{"v":213039.87,"d":"213,039.87"},1]
[25010100,"Плата за послуги, що надаються бюджетними установами згідно з іх основною діяльністю ",135348.7,1]
[25010200,"Надходження бюджетних установ від додаткової (господарської) діяльності ",13648.78,1]
[25010300,"Плата за оренду майна  бюджетних установ",64042.39,1]
[25010400,"Надходження бюджетних установ від реалізації в установленому порядку майна (крім нерухомого майна)",null,0]
[25020000,"Інші джерела власних надходжень",58542.4,1]
[25020100,"Благодійні внески, гранти та дарунки",58542.4,1]
[25020200,"Кошти, що отримують бюджетні установи від підприємств, фізичних осіб та від інших бюджетних установ для виконання цільових заходів",null,0]
[12020100,"Податок з власників транспортних засобів та інших самохідних машин (юридичні особи)",null,0]
[12020200,"Податок з власників транспортних засобів та інших самохідних машин (фізичні особи)",null,0]
[18041500,"Збір за провадження торговельної діяльності нафтопродуктами,скрапленим та стиснутим газом на стаціонарних,малогабаритних і пересувних  АЗС",null,0]
[24110900,"Відсотки за користування довгостроковим кредитом, що надається з місцевих бюджетів молодим сім'ям та одиноким молодим гром.на буд-во житла",null,0]
[{"$nulls":3},0]
[null,"Разом по екології",{"v":0,"d":"0.00"},0]
[24062100,"Грошові стягнення за шкоду, заподіяну порушенням законодавства про охорону навколишнього середовища",null,0]
[{"$nulls":3},{"$f":"IF(OR(C142<>0),1,0)","v":0}]
[19010000,"Екологічний податок",{"v":0,"d":"0.00"},0]
[19010100,"Екологічний податок, який справляється за викиди в атмосферне повітря забруднюючих речовин стаціонарними джерелами забруднення (за винятком викидів в атмосферне повітря двоокису вуглецю)",null,0]
[19010200,"Надходження від скидів забруднюючих речовин безпосередньо у водні об'єкти ",null,0]
[19010300,"Надходження від розміщення відходів у спеціально відведених для цього місцях чи на об'єктах, крім розміщення окремих видів відходів як вторинної сировини",null,{"$f":"IF(OR(C146<>0),1,0)","v":0}]
[19010500,"Надходження від реалізованого палива под. агентами",null,0]
[21110000,"Надходження коштів від відшкодування втрат сільськогосподарського та лісогосподарського вир-ва",null,{"$f":"IF(OR(C148<>0),1,0)","v":0}]
[41052600,"Субвенція з місцевого бюджету на фінансове забезпечення будівництва, реконструкції, ремонту і утримання автомобільних доріг загального користування місцевого значення, вулиць і доріг комунальної власності у населених пунктах за рахунок відповідної субвенції з державного бюджету",null,0]
[50110000,"Цільові фонди, утворені органами місцевої влади",null,0]
[41052900,"Субвенція на погашення заборгованості з різниці в тарифах",null,0]
[null,"БЮДЖЕТ РОЗВИТКУ",{"v":0,"d":"0.00"},0]
[{"$nulls":3},0]
[18010000,"Податок на нерухоме майно, відмінне від земельної ділянки",{"v":0,"d":"0.00"},0]
[18010100,"Податок на нерухоме майно, відмінне від земельної ділянки, сплачений юридичними особами",null,0]
[18010200,"Податок на нерухоме майно, відмінне від земельної ділянки, сплачений фізичними особами",null,0]
[{"$nulls":3},0]
[24110700,"Плата за гарантії, надані ВР АРК та міськими радами",null,0]
[24170000,"Надходження коштів пайової участі у розвитку інфраструктури міста",null,0]
[31030000,"Надходження від відчуження майна комун.власності",null,0]
[33010101,"Надходження від продажу землі",null,0]
[33010500,"Кошти від продажу прав нв земельні ділянки",null,0]
[{"$nulls":3},0]
[null,"ВСЬОГО доходів спеціального фонду",{"v":271582.27,"d":"271,582.27"},1]
[{"$nulls":3},0]
[null,"РАЗОМ   ДОХОДІВ",{"v":6579116.370000001,"d":"6,579,116.37"},{"$f":"IF(OR(C166<>0),1,0)","v":1}]
[]
[]
[]
[{"$nulls":5}," "]